Cogmind - Beta 13 @@@ ROGUE MODE // 2024.04.26 @ 22:35:29 Player: Vox Result: Destroyed by G-34 Mercenary with Small Laser Performance ------------- Evolutions (0) 0 Regions Visited (1) 200 Robots Destroyed (15) 75 Value Destroyed (289) 289 Prototype IDs (0) 0 Alien Tech Used (0) 0 Bonus (0) 0 TOTAL SCORE: 564 Bonus ------- None Cogmind --------- Core Integrity 0/250 Matter 288/300 Energy 250/250 System Corruption 0% Temperature Cool (22) Movement Rolling (140) Ox4 Location -10/Materials Parts ------- > --- POWER (1) -------- Ion Engine > --- PROPULSION (2) --- Wheel Wheel > --- UTILITY (2) ------ Huge Storage Unit Signal Interpreter > --- WEAPON (2) ------- Light Assault Rifle Light Assault Rifle > --- INVENTORY (25) --- Light Ion Engine Light Ion Engine Heat Sink Improved Heat Sink Medium Matter Pod (86) Visual Processing Unit Signal Interpreter Improved Terrain Scanner Weapon Shielding Weapon Shielding Weapon Shielding Weapon Shielding Hacking Suite Light Assault Rifle Light Assault Rifle Light Assault Rifle Grenade Launcher Peak State ------------ > --- POWER ------------ Ion Engine > --- PROPULSION ------- Aluminum Leg Aluminum Leg > --- UTILITY ---------- Small Storage Unit Improved Terrain Scanner > --- WEAPON ----------- Light Cannon Mining Laser > --- INVENTORY -------- Light Ion Engine Light Treads Wheel Compact Wheel [Rating: 9] Favorites ----------- Power Light Ion Engine Engine Light Ion Engine Propulsion Light Treads Treads Light Treads Leg Aluminum Leg Wheel Wheel Utility Small Storage Unit Device Improved Terrain Scanner Storage Small Storage Unit Processor Signal Interpreter Weapon EM Pulse Gun Energy Gun EM Pulse Gun Ballistic Gun Assault Rifle Ballistic Cannon Light Cannon Special Weapon Mining Laser Build | -11 -10 ------- Run | Yrd Mat Slots Evolved . | . . Power . | . . Propulsion . | . . Utility . | . . Weapon . | . . Parts Attached 25 | 12 13 Power 6 | 2 4 Engine 6 | 2 4 Core . | . . Reactor . | . . Propulsion 7 | 4 3 Treads 3 | 2 1 Leg 2 | 2 . Wheel 2 | . 2 Hover . | . . Flight . | . . Utility 4 | 2 2 Device 1 | 1 . Storage 2 | 1 1 Processor 1 | . 1 Hackware . | . . Protection . | . . Artifact . | . . Weapon 8 | 4 4 Energy Gun 2 | 2 . Energy Cannon . | . . Ballistic Gun 4 | 1 3 Ballistic Cannon 1 | . 1 Launcher . | . . Special Weapon 1 | 1 . Impact Weapon . | . . Slashing Weapon . | . . Piercing Weapon . | . . Special Melee Weapon . | . . Unidentified Prototypes . | . . Parts Lost 9 | 5 4 Power 2 | 1 1 Propulsion 2 | 1 1 Utility 1 | . 1 Weapon 4 | 3 1 Highest Loss Streak 5 | 5 3 To Critical Strikes . | . . Average Slot Usage (%) 93 | . 93 Engine 13 | . 13 Treads 5 | . 5 Leg 13 | . 13 Wheel 7 | . 7 Device 1 | . 1 Storage 13 | . 13 Processor 11 | . 11 Ballistic Gun 18 | . 18 Ballistic Cannon 4 | . 4 Special Weapon 3 | . 3 Naked Turns . | . . Heaviest Build 87 | 12 87 Greatest Support 40 | 40 20 Greatest Overweight (x) 8 | . 8 Average Overweight (x) . | . 1 Largest Inventory Capacity 25 | 8 25 Average Capacity 9 | 7 12 Most Carried 17 | 6 17 Average Carried 6 | 5 7 Final Capacity 25 | 8 25 Final Carried 17 | 4 17 Class Distribution -------------------- 100% | Mutant Dominant Class ---------------- Mutant | -10/Materials Resources | -11 -10 ----------- Run | Yrd Mat Matter Collected 676 | 298 378 Remotely . | . . Salvage Created 454 | 100 354 Parts 27 | 5 22 Haulers Intercepted . | . . Recyclers Shooed 1 | . 1 Parts Field Recycled . | . . Retrieved Matter . | . . Parts Self-Destructed . | . . Prevented . | . . Kills | -11 -10 ------- Run | Yrd Mat Combat Hostiles Destroyed 9 | 1 8 Melee 1 | 1 . Guns 4 | . 4 Cannons 4 | . 4 Classes Destroyed 7 | 3 4 Worker 2 | . 2 Tunneler 1 | 1 . Recycler 2 | 1 1 Watcher 2 | . 2 Swarmer 3 | . 3 Grunt 5 | . 5 Assembled 1 | 1 . Best Kill Streak 4 | 2 4 Combat Bots Only 3 | 1 3 Max Kills in Single Turn 1 | 1 1 Gunslinging . | . . Exploded . | . . Melee 1 | 1 . Uniques/NPCs Destroyed . | . . Combat | -11 -10 -------- Run | Yrd Mat Hostile Shots Fired 113 | 47 66 Missed 25 | 14 11 Damage Taken 1373 | 740 633 Core 254 | 71 183 Absorbed by Shields . | . . Core Remaining (%) 71 | 71 . Volleys Fired 71 | 10 61 Largest 2 | 2 2 Hottest 100 | 100 100 Shots Fired 126 | 15 111 Gun 96 | 14 82 Cannon 27 | . 27 Launcher . | . . Special 3 | 1 2 Kinetic 118 | 9 109 Thermal 3 | 1 2 Explosive . | . . Electromagnetic 5 | 5 . Robot Hit Streak 10 | 7 10 Robot Miss Streak 4 | 1 4 Penetration Max . | . . Secondary Targets 1 | . 1 Max Gunslinging Chain 1 | . 1 Shots Hit Robots 87 | 12 75 Core Hits 37 | 10 27 Critical Kills . | . . Critical Parts Destroyed . | . . Critical Strikes 1 | 1 . Corrupt 1 | 1 . Melee Attacks . | . . Impact . | . . Slashing . | . . Piercing . | . . Sneak Attacks . | . . Combat Hostiles . | . . Follow-up Attacks . | . . Damage Inflicted 999 | 189 810 Guns 569 | 135 434 Cannons 344 | . 344 Explosions . | . . Melee . | . . Ramming 38 | 30 8 Kinetic 877 | 99 778 Thermal 48 | 24 24 Explosive . | . . Electromagnetic 36 | 36 . Impact . | . . Slashing . | . . Piercing . | . . Highest Corruption . | . . Average Corruption . | . . Corruption Purged . | . . Corruption Blocked . | . . Overload Shots . | . . Overflow Damage 18 | . 18 Projectiles 18 | . 18 Explosions . | . . Melee . | . . Knockbacks 4 | . 4 Impact . | . . Kinetic 4 | . 4 Secondary . | . . Self-Inflicted Damage . | . . Shots . | . . Rammed 19 | 19 . Targets Rammed 21 | 19 2 Kicked 2 | . 2 Crushed . | . . Highest Temperature 59 | 20 59 Average Temperature 23 | 10 23 Received Heat Transfer 309 | . 309 Siege Activations . | . . Robots Corrupted . | . . Combat Hostiles . | . . Parts Fried . | . . Impact Corruptions . | . . Robots Melted . | . . Combat Hostiles . | . . Parts Melted . | . . Heat Transferred 100 | 50 50 Parts Sabotaged . | . . Parts Stolen . | . . Parts Stripped . | . . Power Chain Reactions . | . . Alert | -11 -10 ------- Run | Yrd Mat Peak Influence 189 | 15 189 Initial . | . . Average 20 | 1 55 Maximum Alert Level . | . . Low Security (%) 100 | 100 100 Level 1 . | . . Level 2 . | . . Level 3 . | . . Level 4 . | . . Level 5 . | . . High Security . | . . Max Security . | . . Squads Dispatched 2 | . 2 Investigation 2 | . 2 Extermination . | . . Reinforcement . | . . Assault . | . . Garrison . | . . Intercept . | . . Searches Triggered . | . . Construction Impeded . | . . Haulers Reinforced . | . . Active Scanning Responses . | . . Cargo Convoy Interrupts . | . . Stealth | -11 -10 --------- Run | Yrd Mat Distress Signals 3 | . 3 Communications Jammed . | . . Distress Signals . | . . Times Spotted 49 | 22 27 Peak Tracking Total 13 | 13 5 Tactical Retreats . | . . Traps | -11 -10 ------- Run | Yrd Mat Traps Triggered 3 | . 3 Indirectly . | . . Trap Hack Attempts . | . . Triggered . | . . Disarmed . | . . Reprogrammed . | . . Reused . | . . Traps Extracted . | . . Installed . | . . Triggered . | . . Machines | -11 -10 ---------- Run | Yrd Mat Machines Disabled 1 | . 1 Max in Single Turn 1 | . 1 Machines Repaired . | . . Machines Dismantled . | . . Machines Sabotaged . | . . Overloaded Fab Kills . | . . Hacking | -11 -10 --------- Run | Yrd Mat Machines Accessed 5 | . 5 Terminals 4 | . 4 Fabricators . | . . Repair Stations . | . . Recycling Units 1 | . 1 Scanalyzers . | . . Garrison Access . | . . Total Hacks 19 | . 19 Successful 8 | . 8 Failed 10 | . 10 Catastrophic . | . . Database Lockouts 1 | . 1 Manual 13 | . 13 Terminals 17 | . 17 Fabricators . | . . Repair Stations . | . . Recycling Units 2 | . 2 Scanalyzers . | . . Garrison Access . | . . Terminal Hacks 4 | . 4 Record 1 | . 1 Robot Analysis 1 | . 1 Recall Investigation 1 | . 1 Registered Prototypes 1 | . 1 Fabricator Hacks . | . . Repair Station Hacks . | . . Recycling Unit Hacks 1 | . 1 Retrieve Components 1 | . 1 Scanalyzer . | . . Garrison Access Hacks . | . . Unauthorized Hacks 3 | . 3 Terminals 3 | . 3 Assimilate 1 | . 1 Botnet 2 | . 2 Fabricators . | . . Repair Stations . | . . Recycling Units . | . . Scanalyzers . | . . Garrison Access . | . . Data Cores Recovered . | . . Used . | . . Hacking Detections 5 | . 5 Full Trace Events 1 | . 1 Feedback Events . | . . Feedback Blocked . | . . Robot Schematics Acquired . | . . Robots Built . | . . Authchips . | . . Time . | . . Total Robot Build Rating . | . . Part Schematics Acquired . | . . Parts Built . | . . Authchips . | . . Time . | . . Total Part Build Rating . | . . Parts Repaired . | . . Time . | . . Parts Recycled . | . . Recycled Matter . | . . Retrieved Matter . | . . Retrieved Components 9 | . 9 Parts Scanalyzed . | . . Part Schematics Acquired . | . . Parts Damaged . | . . Bothacking | -11 -10 ------------ Run | Yrd Mat Used RIF Installer . | . . Robots Hacked . | . . Non-combat . | . . Combat . | . . Robot Hacks Applied . | . . Relay Couplers Released . | . . Fabnet Peak Effective % . | . . Robots Rewired . | . . Allies Hacked . | . . Hacks Repelled . | . . Allies | -11 -10 -------- Run | Yrd Mat Total Allies 1 | . 1 Largest Group 1 | . 1 Highest-Rated Group 10 | . 10 Highest-Rated Ally 10 | . 10 Total Orders . | . . Ally Attacks . | . . Total Damage . | . . Kills . | . . Allies Corrupted . | . . Allies Melted . | . . Intel | -11 -10 ------- Run | Yrd Mat Robot Analysis Total 1 | . 1 Derelict Logs Recovered . | . . Drone Launches . | . . Drone Recoveries . | . . Exploration | -11 -10 ------------- Run | Yrd Mat Turns Passed 2683 | 1769 914 Spaces Moved 723 | 246 477 Core 5 | 5 . Treads 309 | 176 133 Legs 267 | 65 202 Wheels 142 | . 142 Hover . | . . Flight . | . . Fastest Speed 50 | 50 80 Average Speed 143 | 147 142 Slowest Speed 200 | 160 200 Overloaded Moves . | . . Propulsion Burnouts . | . . Robots Hopped . | . . Cave-ins Triggered . | . . Exploration Rate (%) 45 | 33 58 Regions Visited 1 Branch Regions . Pre-discovered Areas . | . . Known Exits Taken . | . . Unknown Exits Taken 1 | 1 . Scrap Searched . | . . Spaces Dug . | . . Terrain Destroyed . | . . Melee . | . . Projectile . | . . AOE . | . . Terrain Rammed . | . . Walls Destroyed . | . . Machines Disabled . | . . Actions | -11 -10 --------- Run | Yrd Mat Total 2235 | 1620 615 Wait 1357 | 1327 30 Move 722 | 245 477 Hop . | . . Pick Up 28 | 7 21 Fast Attach 17 | 8 9 Attach 5 | 3 2 Detach 1 | . 1 Swap 3 | 1 2 Drop 10 | . 10 Fire 71 | 10 61 Melee . | . . Ram . | . . Kick 2 | . 2 Crush 19 | 19 . Escape Stasis . | . . Rewire . | . . Trap . | . . Miscellaneous . | . . Route ------- -11/Scrapyard -10/Materials (discovered 2 exits: [*Mat] / *Min) History --------- Turn | Location | Event 7 | -11/Scrapyard | Discovered new exit (range 16) 1551 | -11/Scrapyard | Assembled infested the area 1652 | -11/Scrapyard | Lost 5 parts (1p1n3w) 1770 | -11/Scrapyard | Entered Materials 1771 | -10/Materials | Build established: Mutant 1786 | -10/Materials | Discovered new exit (range 15) 1814 | -10/Materials | Discovered new exit (range 16) 2105 | -10/Materials | Core integrity fell below 50% 2221 | -10/Materials | Central database locked down 2428 | -10/Materials | Lost 3 parts (1p1n1u) 2481 | -10/Materials | Identified exit to Mines 2681 | -10/Materials | Core integrity fell below 20% 2684 | -10/Materials | Destroyed by G-34 Mercenary with Small Laser Last Messages --------------- Hover Unit Lgt. Ion Engine Ion Engine Visual Processing Unit Hover Unit Aluminum Leg Hover Unit Hacking Suite Beam Cannon 02580_ Acquired Visual Processing Unit. 02583_ Acquired Lgt. Ion Engine. 02588_ Acquired Hacking Suite. 02626_ K-01 Serf cleans the Electrolysis Chamber. 02633_ K-01 Serf collects debris. 02657_ Acquired Weapon Shielding. 02671_ Triggered Alarm Trap. 02671_ An alarm sounds. 02671_ ALERT: Alarm triggered, dispatching investigation squad. Map ----- +----------------------------------------------------+ | ???????????????????# | | ?################### > < | | ?# | | ?# ## ##### ######## | | ?# """ ! ##########???## ##??????? | | ?##### "T" !! #?????????????# #???????? | | ?????# " " #????"????????# #???????? | | ????## #?????T???????# #???????? | | ??#### #?????????#??## ##?#????? | | #????????????# ######## | | """ #?????????#### ## """ | | """ #??????"" + += "T" | | ############# """ #? ? ?? ?#### ##= " " | | ???? ???????# ######+###??## ## | | ????????????# #???###/#### | | ???"????????# """ #????? ???# """ | | ????????????# """ """ #???? ""???# """ | | ?????????? # """ """ #??? """???# """ | | ????????????# """ #?? """???# | | ????????????# ! #? """???# | | ????????????# #? ???????# | | ????????????# ! ||| ## ????????######+ | | ????????????# ! |!| #????????###### | | ????????????# ! ||| %/#?######## | | ????????????# gg #?#! + | | ????????????# @ g #?# # """ | | ????????????################ #?# """ # """ # | | ???????????????????????????? #?# """ + """ # | | ????????????????????????????? #?#= """ # # | | ?????????????????????????????? #?# + + | | ?????????????????????????????? #?########+####### | | ??????????????????????????????? #??# # | | ????????????????????????????????#??# # | | ???????????????????????????????????# # | | ???????????????????????????????????# """"" """"" # | | ???????????????????????????????????# """"" """"" # | | ???????????????????????????????????# """"" """"" # | | ???????????????????????????????????############### | | | | | | | | | | | | | | | | | | | | | | | | | +----------------------------------------------------+ Best States ------------- Heat Dissipation 25 Energy Generation 10 Energy Capacity 250 Matter Stores 300 Matter Capacity 300 Sight Range 16 Terrain Scan Range 16 Terrain Scan Density 10 Evasion (%) 55 Recoil Reduction 2 Item Schematics ----------------- None Robot Schematics ------------------ None Fabricated ------------ Nothing Alien Tech Used ----------------- None Achievements -------------- Curiosity Killed The Cat Fist Fight Challenges ------------ None Game ------ Seed TeslaNuclearBroadsword Manual? 0 Play Time 00:19:09 Cumulative 38.3 hours Start 2024.04.26 @ 22:19:47 End 2024.04.26 @ 22:35:29 Sessions 1 Manual Loads 0 Difficulty Rogue Special Mode None Game No. 34 Rogue 30 Adventurer 0 Explorer 4 Win Type - Total 1 Types 1/0/0/0/0/0/0/0/0 Lore% 30 Gallery% 35 Achievement% 37 Wizard Run 0 Options --------- Layout 1 ASCII 0 Keyboard 0 Movement Mouse Keybinds 0 Fullscreen 2 Font 32/SmallcapsGlow Map View 50x35 Zoom Use 0% Tactical HUD 1 Map Filters NONE Filters NONE Steam 1 RUN: 4fb82e1a-10bf-4a10-87dd-cb5b55aae34c